Workbook

Sheet Notes Balance
A1: TOTAL NOTE BALANCES
B2: Total Notes | C2: Class A1 Notes | D2: Class A2 Notes | E2: Class B Notes | F2: Class C Notes
A3: Initial Invested Amount | B3: =SUM(C3:F3) -> 408900000 | C3: 189325000 | D3: 200000000 | E3: 10875000 | F3: 8700000
A4: Invested Amount as at Previous Payment Date: 17 August 2020 | B4: =SUM(C4:F4) -> 408900000 | C4: 189325000 | D4: 200000000 | E4: 10875000 | F4: 8700000
A5: Stated Amount as at Previous Payment Date: 17 August 2020 | B5: 408900000 | C5: 189325000 | D5: 200000000 | E5: 10875000 | F5: 8700000
A6: Principal Payments to Noteholders on Payment Date | B6: 34777204.24 | C6: 34777204.24 | D6: 0 | E6: 0 | F6: 0
A7: Gross Aggregate Charge-Offs | B7: =SUM(C7:G7) -> 0 | C7: 0 | D7: 0 | E7: 0 | F7: 0
A8: Gross Aggregate Reinstatements of charge-offs | B8: 0 | C8: 0 | D8: 0 | E8: 0 | F8: 0
A9: Aggregate Charge-Offs for this Collection Period | B9: 0 | C9: 0 | D9: 0 | E9: 0 | F9: 0
A10: Reinstatements relating to Charge-offs that have occurred this Collection Period | B10: 0 | C10: 0 | D10: 0 | E10: 0 | F10: 0
A11: Aggregate Carry Over Charge-offs not previously reinstated | B11: 0 | C11: 0 | D11: 0 | E11: 0 | F11: 0
A12: Reinstatements of Carry Over Charge-offs not previously reinstated | B12: 0 | C12: 0 | D12: 0 | E12: 0 | F12: 0
A13: Aggregate Charge-Offs not reinstated and to be carried over to next period | B13: 0 | C13: 0 | D13: 0 | E13: 0 | F13: 0
A14: Invested Amount as at Payment Date: 16 November 2020 | B14: 374122795.8 | C14: 154547795.8 | D14: 200000000 | E14: 10875000 | F14: 8700000
A15: Stated Amount as at Payment Date: 16 November 2020 | B15: 374122795.8 | C15: 154547795.8 | D15: 200000000 | E15: 10875000 | F15: 8700000
A16: Bond Factor at Payment Date: 16 November 2020 | C16: 0.8163094983 | D16: 1 | E16: 1 | F16: 1
A17: Coupon Margin | C17: 0.0095 | D17: 0.011 | E17: 0 | F17: 0
A18: Coupon Rate (3 month BBSW + margin) | C18: 0.0105 | D18: 0.012 | E18: 0.001 | F18: 0.001
A19: Days in Coupon Period | C19: 91 | D19: 91 | E19: 91 | F19: 91
A20: Coupon Entitlement to be paid out on the current Payment Date: 16 November 2020 | C20: 495616.54 | D20: 598356.16 | E20: 2711.3 | F20: 2169.04

Sheet Cumulative Defaults
A1: Cumulative Defaults & Losses
A3: Month | B3: Gross Losses | C3: Recoveries | D3: Net Losses
A4: 2020-10-01 | B4: =+'Collateral Tables'!E9/435000000 -> 0 | C4: =+'Collateral Tables'!E23/435000000 -> 0 | D4: =+B4-C4 -> 0

Sheet Collateral Tables
B1: CNHI CAPITAL AUSTRALIA RECEIVABLES TRUST SERIES 2020-1 (TERM DEAL)
B2: COLLATERAL DATA TABLES
B4: OUTSTANDING RECEIVABLES | E4: 2020-10-31
B6: Opening Balance | E6: 434999973.2
B7: Principal Repayments - Scheduled | E7: =MIN(([2]Sheet1!$B$3+[2]Sheet1!$B$4+[2]Sheet1!$B$5+[2]Sheet1!$B$6),'[1]16 Nov 20'!H23) -> 26305441.5
B8: Principal Repayments - Unscheduled | E8: ='[1]16 Nov 20'!$H$23-'Collateral Tables'!E7 -> 8471735.94
A9: =SUM(E9) -> 0 | B9: Charge-Offs | E9: ='[1]16 Nov 20'!$H$37 -> 0
B10: Reinstatements
B11: New Receivables Purchased
B12: Non Cash Change in Receivables
B13: Closing Balance | E13: =E6-E7-E8-E9+E10+E11-E12 -> 400222795.8
B15: PORTFOLIO STATISTICS
B17: Summary
B18: Number of contracts | E18: =[3]Summary!$B$4 -> 3459
B19: Dollar value of contracts | E19: =[3]Summary!$B$5 -> 400222795.8
B20: Number of contracts closed during the Quarter | E20: =[3]Summary!$B$19 -> 81
B21: Dollar value of contracts closed during the Quarter | E21: =[3]Summary!$B$20 -> 11089284.78
A23: =SUM(Q23) -> 0 | B23: Dollar Value of Recoveries from Collateral | E23: =[3]Summary!$C$16 -> 0
B24: Dollar Value of Recoveries from Other Sources | E24: 0
B26: Average Term of Contracts (Months) | E26: =[4]Sheet1!$W$3461 -> 54.45878773
B27: Average Term to Maturity (Months) | E27: =[4]Sheet1!$X$3461 -> 39.32011075
B28: Average Residual / Balloon Payment * | E28: =[4]Sheet1!$AI$3461 -> 0.0375541485
B29: Average Seasoning (Months) | E29: =E26-E27 -> 15.13867698
B30: Average Dollar Value of Individual Assets | E30: =E19/E18 -> 115704.7689
B31: Weighted Average Interest Rate | E31: =[4]Sheet1!$AA$3461/100 -> 0.02279313753
B33: Payment in Arrears
A34: 1. 0 - 30 Days | B34: 0 - 30 Days | E34: =IFERROR(VLOOKUP($A34,'[5]Arrears Reporting'!$A$1:$D$8,3,FALSE),0) -> 3448 | F34: =IFERROR(VLOOKUP($A34,'[5]Arrears Reporting'!$A$1:$D$8,2,FALSE),0) -> 608582.11 | G34: =F34/F$50 -> 0.001520608312
A35: 2. 31 - 60 Days | B35: 31 - 60 Days | E35: =IFERROR(VLOOKUP($A35,'[5]Arrears Reporting'!$A$1:$D$8,3,FALSE),0) -> 8 | F35: =IFERROR(VLOOKUP($A35,'[5]Arrears Reporting'!$A$1:$D$8,2,FALSE),0) -> 239593.93 | G35: =F35/F$50 -> 0.0005986513825
A36: 3. 61 - 90 Days | B36: 61 - 90 Days | E36: =IFERROR(VLOOKUP($A36,'[5]Arrears Reporting'!$A$1:$D$8,3,FALSE),0) -> 2 | F36: =IFERROR(VLOOKUP($A36,'[5]Arrears Reporting'!$A$1:$D$8,2,FALSE),0) -> 134580.25 | G36: 0.0003362633299
A37: 4. 91 - 120 Days | B37: 91 - 120 Days | E37: =IFERROR(VLOOKUP($A37,'[5]Arrears Reporting'!$A$1:$D$8,3,FALSE),0) -> 1 | F37: =IFERROR(VLOOKUP($A37,'[5]Arrears Reporting'!$A$1:$D$8,2,FALSE),0) -> 5840.85 | G37: 1.45939963e-05
A38: 5. 121 - 150 Days | B38: 121 - 150 Days | E38: =IFERROR(VLOOKUP($A38,'[5]Arrears Reporting'!$A$1:$D$8,3,FALSE),0) -> 0 | F38: =IFERROR(VLOOKUP($A38,'[5]Arrears Reporting'!$A$1:$D$8,2,FALSE),0) -> 0 | G38: 0
A39: 6. 151 - 180 Days | B39: 151 - 180 Days | E39: =IFERROR(VLOOKUP($A39,'[5]Arrears Reporting'!$A$1:$D$8,3,FALSE),0) -> 0 | F39: =IFERROR(VLOOKUP($A39,'[5]Arrears Reporting'!$A$1:$D$8,2,FALSE),0) -> 0 | G39: 0
B40: Total | E40: =SUM(E34:E39) -> 3459 | F40: =SUM(F34:F39) -> 988597.14 | G40: =SUM(G34:G39) -> 0.002470117021
B41: * Expressed as a % of Aggreg. Rec. closing bal. | F41: > 30 days | G41: =SUM(G35:G39) -> 0.0009495087087
A43: 0 - 30 Days | B43: Account Balances in Arrears
A44: 1. 0 - 30 Days | B44: 0 - 30 Days | E44: =IFERROR(VLOOKUP($A44,'[5]Arrears Reporting'!$A$1:$D$8,3,FALSE),0) -> 3448 | F44: =IFERROR(VLOOKUP($A44,'[5]Arrears Reporting'!$A$1:$D$8,4,FALSE),0) -> 398525593.3 | G44: =F44/F$50 -> 0.9957593559
A45: 2. 31 - 60 Days | B45: 31 - 60 Days | E45: =IFERROR(VLOOKUP($A45,'[5]Arrears Reporting'!$A$1:$D$8,3,FALSE),0) -> 8 | F45: =IFERROR(VLOOKUP($A45,'[5]Arrears Reporting'!$A$1:$D$8,4,FALSE),0) -> 1107284.19 | G45: =F45/F$50 -> 0.002766669469
A46: 3. 61 - 90 Days | B46: 61 - 90 Days | E46: =IFERROR(VLOOKUP($A46,'[5]Arrears Reporting'!$A$1:$D$8,3,FALSE),0) -> 2 | F46: =IFERROR(VLOOKUP($A46,'[5]Arrears Reporting'!$A$1:$D$8,4,FALSE),0) -> 543586.31 | G46: 0.001358209267
A47: 4. 91 - 120 Days | B47: 91 - 120 Days | E47: =IFERROR(VLOOKUP($A47,'[5]Arrears Reporting'!$A$1:$D$8,3,FALSE),0) -> 1 | F47: =IFERROR(VLOOKUP($A47,'[5]Arrears Reporting'!$A$1:$D$8,4,FALSE),0) -> 46331.93 | G47: =F47/F$50 -> 0.0001157653449
A48: 5. 121 - 150 Days | B48: 121 - 150 Days | E48: =IFERROR(VLOOKUP($A48,'[5]Arrears Reporting'!$A$1:$D$8,3,FALSE),0) -> 0 | F48: =IFERROR(VLOOKUP($A48,'[5]Arrears Reporting'!$A$1:$D$8,4,FALSE),0) -> 0 | G48: =F48/F$50 -> 0
A49: 6. 151 - 180 Days | B49: 151 - 180 Days | E49: =IFERROR(VLOOKUP($A49,'[5]Arrears Reporting'!$A$1:$D$8,3,FALSE),0) -> 0 | F49: =IFERROR(VLOOKUP($A49,'[5]Arrears Reporting'!$A$1:$D$8,4,FALSE),0) -> 0 | G49: =F49/F$50 -> 0
B50: Total | E50: =SUM(E44:E49) -> 3459 | F50: =SUM(F44:F49) -> 400222795.8 | G50: =SUM(G44:G49) -> 1
A51: NSW | F51: > 30 days | G51: =SUM(G45:G49) -> 0.004240644081
F52: >90 days | G52: =SUM(G47:G49) -> 0.0001157653449
A54: VIC | B54: Geographic Distribution
A55: NSW | B55: New South Wales | E55: =F55/F$63 -> 0.2468596892 | F55: =IFERROR(VLOOKUP($A55,'[5]Geographic '!$A$1:$C$10,3,FALSE),0) -> 98798874.96
A56: VIC | B56: Victoria | E56: =F56/F$63 -> 0.2132303205 | F56: =IFERROR(VLOOKUP($A56,'[5]Geographic '!$A$1:$C$10,3,FALSE),0) -> 85339635.01
A57: QLD | B57: Queensland | E57: 0.1091100648 | F57: =IFERROR(VLOOKUP($A57,'[5]Geographic '!$A$1:$C$10,3,FALSE),0) -> 43668335.19
A58: SA | B58: South Australia | E58: 0.2000584062 | F58: =IFERROR(VLOOKUP($A58,'[5]Geographic '!$A$1:$C$10,3,FALSE),0) -> 80067934.64
A59: NT | B59: Northern Territory | E59: 0 | F59: =IFERROR(VLOOKUP($A59,'[5]Geographic '!$A$1:$C$10,3,FALSE),0) -> 0
A60: ACT | B60: Australian Capital Territory | E60: 0.001139781704 | F60: =IFERROR(VLOOKUP($A60,'[5]Geographic '!$A$1:$C$10,3,FALSE),0) -> 456166.62
A61: TAS | B61: Tasmania | E61: 0.01579303582 | F61: =IFERROR(VLOOKUP($A61,'[5]Geographic '!$A$1:$C$10,3,FALSE),0) -> 6320732.95
A62: WA | B62: Western Australia | E62: 0.2138087018 | F62: =IFERROR(VLOOKUP($A62,'[5]Geographic '!$A$1:$C$10,3,FALSE),0) -> 85571116.39
B63: Total | E63: =SUM(E55:E62) -> 1 | F63: =SUM(F55:F62) -> 400222795.8
A64: AG | G64: =E13-F63 -> 1.430511475e-06
A65: CE | B65: Top Industry Distribution
A66: AGRICULTURAL MACHINERY | B66: Agricultural | E66: =F66/F$69 -> 0.9615111519 | F66: =IFERROR(VLOOKUP($A$66,'[5]Top Industry'!$A$1:$C$4,3,FALSE),) -> 384818681.4
A67: CONSTRUCTION EQUIPMENT | B67: Construction | E67: =F67/F$69 -> 0.03848884812 | F67: =IFERROR(VLOOKUP($A$67,'[5]Top Industry'!$A$1:$C$4,3,FALSE),) -> 15404114.4
A68: MOTOR VEHICLE - AG | B68: Motor Vehicle AG | E68: =F68/F$69 -> 0 | F68: =IFERROR(VLOOKUP($A$68,'[5]Top Industry'!$A$1:$C$4,3,FALSE),) -> 0
B69: Total | E69: =SUM(E66:E68) -> 1 | F69: =SUM(F66:F68) -> 400222795.8 | G69: =F63-F69 -> -5.960464478e-07
A70: COMBINE
A71: 40-100 HP TRACTOR | B71: Collateral Types
A72: 100<140 HP TRACTOR | B72: 100<140 HP TRACTOR | E72: =IFERROR(F72/F$110,0) -> 0.1004168551 | F72: =IFERROR(VLOOKUP($A72,[5]Collateral!$A$1:$C$35,3,FALSE),"") -> 40189114.48
A73: 4 EWD TRACTORS | B73: 4 EWD TRACTORS | E73: 0.09774929935 | F73: =IFERROR(VLOOKUP($A73,[5]Collateral!$A$1:$C$35,3,FALSE),"") -> 39121497.87
A74: 40<60 HP TRACTOR | B74: 40<60 HP TRACTOR | E74: 0.009783323542 | F74: =IFERROR(VLOOKUP($A74,[5]Collateral!$A$1:$C$35,3,FALSE),"") -> 3915509.1
A75: 4WD Vehicle | B75: 4WD Vehicle | E75: 0.002905412466 | F75: =IFERROR(VLOOKUP($A75,[5]Collateral!$A$1:$C$35,3,FALSE),"") -> 1162812.3
A76: 60<100 HP TRACTOR | B76: 60<100 HP TRACTOR | E76: 0.04600663487 | F76: =IFERROR(VLOOKUP($A76,[5]Collateral!$A$1:$C$35,3,FALSE),"") -> 18412904.03
A77: BACKHOE | B77: BACKHOE | E77: 0.0003622858606 | F77: =IFERROR(VLOOKUP($A77,[5]Collateral!$A$1:$C$35,3,FALSE),"") -> 144995.06
A78: BALERS, WINDROWERS, MOWERS, RAKES | B78: BALERS, WINDROWERS, MOWERS, RAKES | E78: 0.04060595749 | F78: =IFERROR(VLOOKUP($A78,[5]Collateral!$A$1:$C$35,3,FALSE),"") -> 16251429.83
A79: COMBINES | B79: COMBINES | E79: 0.3270829099 | F79: =IFERROR(VLOOKUP($A79,[5]Collateral!$A$1:$C$35,3,FALSE),"") -> 130906036.7
A80: COMPACT TRACK LOADER | B80: COMPACT TRACK LOADER | E80: 0.005216192436 | F80: =IFERROR(VLOOKUP($A80,[5]Collateral!$A$1:$C$35,3,FALSE),"") -> 2087639.12
A81: COMPACT WHEEL LOADER | B81: COMPACT WHEEL LOADER | E81: 0.0006708397993 | F81: =IFERROR(VLOOKUP($A81,[5]Collateral!$A$1:$C$35,3,FALSE),"") -> 268485.38
A82: CRAWLER EXCAVATOR | B82: CRAWLER EXCAVATOR | E82: 0.007480996964 | F82: =IFERROR(VLOOKUP($A82,[5]Collateral!$A$1:$C$35,3,FALSE),"") -> 2994065.52
A83: CRAWLER DOZER | B83: CRAWLER DOZER | E83: 0.0001978121707 | F83: =IFERROR(VLOOKUP($A83,[5]Collateral!$A$1:$C$35,3,FALSE),"") -> 79168.94
A84: CULTIVATORS,SEEDERS, HARROWS | B84: CULTIVATORS,SEEDERS, HARROWS | E84: 0.01860263278 | F84: =IFERROR(VLOOKUP($A84,[5]Collateral!$A$1:$C$35,3,FALSE),"") -> 7445197.7
A85: DRILL | B85: DRILL | E85: 0.0009203942502 | F85: =IFERROR(VLOOKUP($A85,[5]Collateral!$A$1:$C$35,3,FALSE),"") -> 368362.76
A86: DUMP TRUCKS | B86: DUMP TRUCKS | E86: 7.227092086e-05 | F86: =IFERROR(VLOOKUP($A86,[5]Collateral!$A$1:$C$35,3,FALSE),"") -> 28924.47
A87: EXCAVATORS / GRADERS | B87: EXCAVATORS / GRADERS | E87: 0.0005266989343 | F87: =IFERROR(VLOOKUP($A87,[5]Collateral!$A$1:$C$35,3,FALSE),"") -> 210796.92
A88: FEEDERS, MIXERS, WAGONS, BINS, FEED STORAGE | B88: FEEDERS, MIXERS, WAGONS, BINS, FEED STORAGE | E88: 0.001264330981 | F88: =IFERROR(VLOOKUP($A88,[5]Collateral!$A$1:$C$35,3,FALSE),"") -> 506014.08
A89: FRONT END LOADER | B89: FRONT END LOADER | E89: 0.0006438110541 | F89: =IFERROR(VLOOKUP($A89,[5]Collateral!$A$1:$C$35,3,FALSE),"") -> 257667.86
A90: FRONTS | B90: FRONTS | E90: 0.003778167926 | F90: =IFERROR(VLOOKUP($A90,[5]Collateral!$A$1:$C$35,3,FALSE),"") -> 1512108.93
A91: GRADER | B91: GRADER | E91: 0 | F91: =IFERROR(VLOOKUP($A91,[5]Collateral!$A$1:$C$35,3,FALSE),"") -> 
A92: HARVESTERS - Other | B92: HARVESTERS - Other | E92: 0.01973731572 | F92: =IFERROR(VLOOKUP($A92,[5]Collateral!$A$1:$C$35,3,FALSE),"") -> 7899323.68
A93: IRRIGATION EQUIPMENT | B93: IRRIGATION EQUIPMENT | E93: 0 | F93: =IFERROR(VLOOKUP($A93,[5]Collateral!$A$1:$C$35,3,FALSE),"") -> 
A94: MATERIALS HANDLING EQUIPMENT | B94: MATERIALS HANDLING EQUIPMENT | E94: 0 | F94: =IFERROR(VLOOKUP($A94,[5]Collateral!$A$1:$C$35,3,FALSE),"") -> 
A95: MIDI CRAWLER EXCAVATOR | B95: MIDI CRAWLER EXCAVATOR | E95: 0.001268061053 | F95: =IFERROR(VLOOKUP($A95,[5]Collateral!$A$1:$C$35,3,FALSE),"") -> 507506.94
A96: MINI EXCAVATOR | B96: MINI EXCAVATOR | E96: 0.005112327163 | F96: =IFERROR(VLOOKUP($A96,[5]Collateral!$A$1:$C$35,3,FALSE),"") -> 2046069.87
A97: OTHER AG | B97: OTHER AG | E97: 0.01618515102 | F97: =IFERROR(VLOOKUP($A97,[5]Collateral!$A$1:$C$35,3,FALSE),"") -> 6477666.39
A98: OTHER CE | B98: OTHER CE | E98: 0 | F98: =IFERROR(VLOOKUP($A98,[5]Collateral!$A$1:$C$35,3,FALSE),"") -> 
A99: OVER 140 HP TRACTOR | B99: OVER 140 HP TRACTOR | E99: 0.2093803489 | F99: =IFERROR(VLOOKUP($A99,[5]Collateral!$A$1:$C$35,3,FALSE),"") -> 83798788.62
A100: QUAD BIKES | B100: QUAD BIKES | E100: 2.740765922e-05 | F100: =IFERROR(VLOOKUP($A100,[5]Collateral!$A$1:$C$35,3,FALSE),"") -> 10969.17
A101: ROLLER | B101: ROLLER | E101: 0.003973940532 | F101: =IFERROR(VLOOKUP($A101,[5]Collateral!$A$1:$C$35,3,FALSE),"") -> 1590461.59
A102: SCRAPERS | B102: SCRAPERS | E102: 0 | F102: =IFERROR(VLOOKUP($A102,[5]Collateral!$A$1:$C$35,3,FALSE),"") -> 
A103: SKID STEER LOADER | B103: SKID STEER LOADER | E103: 0.009863190532 | F103: =IFERROR(VLOOKUP($A103,[5]Collateral!$A$1:$C$35,3,FALSE),"") -> 3947473.69
A104: SKIDSTEER / UNILOADER | B104: SKIDSTEER / UNILOADER | E104: 0.0004905218345 | F104: =IFERROR(VLOOKUP($A104,[5]Collateral!$A$1:$C$35,3,FALSE),"") -> 196318.02
A105: SPRAYING EQUIPMENT | B105: SPRAYING EQUIPMENT | E105: 0.06511955632 | F105: =IFERROR(VLOOKUP($A105,[5]Collateral!$A$1:$C$35,3,FALSE),"") -> 26062330.89
A106: Telehandlers | B106: Telehandlers | E106: 0.0005504249941 | F106: =IFERROR(VLOOKUP($A106,[5]Collateral!$A$1:$C$35,3,FALSE),"") -> 220292.63
A107: UNDER 40 HP TRACTORS | B107: UNDER 40 HP TRACTORS | E107: 0.0007512175298 | F107: =IFERROR(VLOOKUP($A107,[5]Collateral!$A$1:$C$35,3,FALSE),"") -> 300654.38
A108: WHEEL LOADERS | B108: WHEEL LOADERS | E108: 0.002932891635 | F108: =IFERROR(VLOOKUP($A108,[5]Collateral!$A$1:$C$35,3,FALSE),"") -> 1173810.09
A109: WHEEL LOADERS (OLD) | B109: WHEEL LOADERS (OLD) | E109: 0.0003208182826 | F109: =IFERROR(VLOOKUP($A109,[5]Collateral!$A$1:$C$35,3,FALSE),"") -> 128398.79
B110: Total | E110: =SUM(E72:E108) -> 0.9996791817 | F110: =SUM(F72:F109) -> 400222795.8 | G110: =F69-F110 -> 7.152557373e-07
A111: $ 0 - $25,000
A112: $ 25,001 to $50,000 | B112: Contract Balance Distribution
A113: $0 - $25,000 | B113: $ 0 - $25,000 | E113: =IFERROR(F113/F$124,0) -> 0.02257445859 | F113: =IFERROR(VLOOKUP($A113,'[5] Balance Distribution'!$A$1:$C$17,3,FALSE),"") -> 9034812.93
A114: $25,001 - $50,000 | B114: $ 25,001 to $50,000 | E114: =IFERROR(F114/F$124,0) -> 0.07303334253 | F114: =IFERROR(VLOOKUP($A114,'[5] Balance Distribution'!$A$1:$C$17,3,FALSE),"") -> 29229608.53
A115: $50,001 - $75,000 | B115: $ 50,001 to $75,000 | E115: 0.07495608116 | F115: =IFERROR(VLOOKUP($A115,'[5] Balance Distribution'!$A$1:$C$17,3,FALSE),"") -> 29999132.36
A116: $75,001 - $100,000 | B116: $ 75,001 to $100,000 | E116: 0.06386413903 | F116: =IFERROR(VLOOKUP($A116,'[5] Balance Distribution'!$A$1:$C$17,3,FALSE),"") -> 25559884.27
A117: $100,001 - $125,000 | B117: $100,001 to $125,000 | E117: 0.05839619644 | F117: =IFERROR(VLOOKUP($A117,'[5] Balance Distribution'!$A$1:$C$17,3,FALSE),"") -> 23371489
A118: $125,001 - $150,000 | B118: $125,001 to $150,000 | E118: 0.06537334976 | F118: =IFERROR(VLOOKUP($A118,'[5] Balance Distribution'!$A$1:$C$17,3,FALSE),"") -> 26163904.81
A119: $150,001 - $200,000 | B119: $150,000 to $200,000 | E119: 0.1171737937 | F119: =IFERROR(VLOOKUP($A119,'[5] Balance Distribution'!$A$1:$C$17,3,FALSE),"") -> 46895623.29
A120: $200,001 - $300,000 | B120: $200,001 to $300,000 | E120: 0.1875042323 | F120: =IFERROR(VLOOKUP($A120,'[5] Balance Distribution'!$A$1:$C$17,3,FALSE),"") -> 75043468.06
A121: $300,001 - $400,000 | B121: $300,001 to $400,000 | E121: 0.1584696051 | F121: =IFERROR(VLOOKUP($A121,'[5] Balance Distribution'!$A$1:$C$17,3,FALSE),"") -> 63423148.41
A122: $400,001 - $500,000 | B122: $400,001 to $500,000 | E122: 0.08834049256 | F122: =IFERROR(VLOOKUP($A122,'[5] Balance Distribution'!$A$1:$C$17,3,FALSE),"") -> 35355878.91
A123: $500,001+ | B123: $500,000+ | E123: 0.09031430886 | F123: =IFERROR(VLOOKUP($A123,'[5] Balance Distribution'!$A$1:$C$17,3,FALSE),"") -> 36145845.19
A124: $200,001 to $300,000 | B124: Total | E124: =SUM(E113:E123) -> 1 | F124: =SUM(F113:F123) -> 400222795.8 | G124: =F110-F124 -> 0
A125: 0
A126: 0 to 5 | B126: Residual / Balloon Payment Distribution
A127: 0 | B127: 0 | E127: =IFERROR(F127/F$137,0) -> 0.8807806998 | F127: =IFERROR(VLOOKUP($A127,'[5]Residual '!$A$1:$C$14,3,FALSE),"") -> 352508514.1
A128: 0 to 5 | B128: 0 to 5 | E128: =IFERROR(F128/F$137,0) -> 0.0002953550404 | F128: =IFERROR(VLOOKUP($A128,'[5]Residual '!$A$1:$C$14,3,FALSE),"") -> 118207.82
A129: 6 to 10 | B129: 06 to 10 | E129: 0.0008490252769 | F129: =IFERROR(VLOOKUP($A129,'[5]Residual '!$A$1:$C$14,3,FALSE),"") -> 339799.27
A130: 11 to 15 | B130: 11 to 15 | E130: 0.004854227697 | F130: =IFERROR(VLOOKUP($A130,'[5]Residual '!$A$1:$C$14,3,FALSE),"") -> 1942772.58
A131: 16 to 20 | B131: 16 to 20 | E131: 0.01286476691 | F131: =IFERROR(VLOOKUP($A131,'[5]Residual '!$A$1:$C$14,3,FALSE),"") -> 5148772.98
A132: 21 to 25 | B132: 21 to 25 | E132: 0.01399708395 | F132: =IFERROR(VLOOKUP($A132,'[5]Residual '!$A$1:$C$14,3,FALSE),"") -> 5601952.07
A133: 26 to 30 | B133: 26 to 30 | E133: 0.03871036374 | F133: =IFERROR(VLOOKUP($A133,'[5]Residual '!$A$1:$C$14,3,FALSE),"") -> 15492770
A134: 31 to 35 | B134: 31 to 35 | E134: 0.01210334209 | F134: =IFERROR(VLOOKUP($A134,'[5]Residual '!$A$1:$C$14,3,FALSE),"") -> 4844033.41
A135: 36 to 40 | B135: 36 to 40 | E135: 0.02168696514 | F135: =IFERROR(VLOOKUP($A135,'[5]Residual '!$A$1:$C$14,3,FALSE),"") -> 8679617.82
A136: 41+ % | B136: 41+% | E136: 0.01385817037 | F136: =IFERROR(VLOOKUP($A136,'[5]Residual '!$A$1:$C$14,3,FALSE),"") -> 5546355.69
E137: =SUM(E127:E136) -> 1 | F137: =SUM(F127:F136) -> 400222795.8 | G137: =F124-F137 -> -6.556510925e-07
A138: 2004 Q1
A139: 2004 Q2 | B139: Quarter of Maturity Distribution
A140: =RIGHT(B140,2)&LEFT(B140,4) -> Q32020 | B140: 2020Q3 | E140: =F140/F$165 -> 0.001227037203 | F140: =IFERROR(VLOOKUP($A140,'[5]Quarter of Maturity Dist'!$A$1:$C$27,3,FALSE),0) -> 491088.26
A141: Q42020 | B141: 2020Q4 | E141: 0.002492662438 | F141: =IFERROR(VLOOKUP($A141,'[5]Quarter of Maturity Dist'!$A$1:$C$27,3,FALSE),0) -> 997620.33
A142: Q12021 | B142: 2021Q1 | E142: 0.008542613055 | F142: =IFERROR(VLOOKUP($A142,'[5]Quarter of Maturity Dist'!$A$1:$C$27,3,FALSE),0) -> 3418948.48
A143: Q22021 | B143: 2021Q2 | E143: 0.01049645431 | F143: =IFERROR(VLOOKUP($A143,'[5]Quarter of Maturity Dist'!$A$1:$C$27,3,FALSE),0) -> 4200920.29
A144: Q32021 | B144: 2021Q3 | E144: 0.006317486427 | F144: =IFERROR(VLOOKUP($A144,'[5]Quarter of Maturity Dist'!$A$1:$C$27,3,FALSE),0) -> 2528402.08
A145: Q42021 | B145: 2021Q4 | E145: 0.01089744254 | F145: =IFERROR(VLOOKUP($A145,'[5]Quarter of Maturity Dist'!$A$1:$C$27,3,FALSE),0) -> 4361404.92
A146: Q12022 | B146: 2022Q1 | E146: 0.03569149607 | F146: =IFERROR(VLOOKUP($A146,'[5]Quarter of Maturity Dist'!$A$1:$C$27,3,FALSE),0) -> 14284550.34
A147: Q22022 | B147: 2022Q2 | E147: 0.01837221859 | F147: =IFERROR(VLOOKUP($A147,'[5]Quarter of Maturity Dist'!$A$1:$C$27,3,FALSE),0) -> 7352980.69
A148: Q32022 | B148: 2022Q3 | E148: 0.01605490766 | F148: =IFERROR(VLOOKUP($A148,'[5]Quarter of Maturity Dist'!$A$1:$C$27,3,FALSE),0) -> 6425540.03
A149: Q42022 | B149: 2022Q4 | E149: 0.01900083813 | F149: =IFERROR(VLOOKUP($A149,'[5]Quarter of Maturity Dist'!$A$1:$C$27,3,FALSE),0) -> 7604568.56
A150: Q12023 | B150: 2023Q1 | E150: 0.1013513525 | F150: =IFERROR(VLOOKUP($A150,'[5]Quarter of Maturity Dist'!$A$1:$C$27,3,FALSE),0) -> 40563121.64
A151: Q22023 | B151: 2023Q2 | E151: 0.06082467275 | F151: =IFERROR(VLOOKUP($A151,'[5]Quarter of Maturity Dist'!$A$1:$C$27,3,FALSE),0) -> 24343420.58
A152: Q32023 | B152: 2023Q3 | E152: 0.05222037723 | F152: =IFERROR(VLOOKUP($A152,'[5]Quarter of Maturity Dist'!$A$1:$C$27,3,FALSE),0) -> 20899785.37
A153: Q42023 | B153: 2023Q4 | E153: 0.05972607291 | F153: =IFERROR(VLOOKUP($A153,'[5]Quarter of Maturity Dist'!$A$1:$C$27,3,FALSE),0) -> 23903735.88
A154: Q12024 | B154: 2024Q1 | E154: 0.1424527051 | F154: =IFERROR(VLOOKUP($A154,'[5]Quarter of Maturity Dist'!$A$1:$C$27,3,FALSE),0) -> 57012819.88
A155: Q22024 | B155: 2024Q2 | E155: 0.04896635646 | F155: =IFERROR(VLOOKUP($A155,'[5]Quarter of Maturity Dist'!$A$1:$C$27,3,FALSE),0) -> 19597452.08
A156: Q32024 | B156: 2024Q3 | E156: 0.06069754129 | F156: =IFERROR(VLOOKUP($A156,'[5]Quarter of Maturity Dist'!$A$1:$C$27,3,FALSE),0) -> 24292539.67
A157: Q42024 | B157: 2024Q4 | E157: 0.09174362785 | F157: =IFERROR(VLOOKUP($A157,'[5]Quarter of Maturity Dist'!$A$1:$C$27,3,FALSE),0) -> 36717891.23
A158: Q12025 | B158: 2025Q1 | E158: 0.1541022266 | F158: =IFERROR(VLOOKUP($A158,'[5]Quarter of Maturity Dist'!$A$1:$C$27,3,FALSE),0) -> 61675223.95
A159: Q22025 | B159: 2025Q2 | E159: 0.06863276505 | F159: =IFERROR(VLOOKUP($A159,'[5]Quarter of Maturity Dist'!$A$1:$C$27,3,FALSE),0) -> 27468397.11
A160: Q32025 | B160: 2025Q3 | E160: 0.009054098013 | F160: =IFERROR(VLOOKUP($A160,'[5]Quarter of Maturity Dist'!$A$1:$C$27,3,FALSE),0) -> 3623656.42
A161: Q42025 | B161: 2025Q4 | E161: 0.007012758143 | F161: =IFERROR(VLOOKUP($A161,'[5]Quarter of Maturity Dist'!$A$1:$C$27,3,FALSE),0) -> 2806665.67
A162: Q12026 | B162: 2026Q1 | E162: 0.01079789851 | F162: =IFERROR(VLOOKUP($A162,'[5]Quarter of Maturity Dist'!$A$1:$C$27,3,FALSE),0) -> 4321565.13
A163: Q22026 | B163: 2026Q2 | E163: 0.003324391274 | F163: =IFERROR(VLOOKUP($A163,'[5]Quarter of Maturity Dist'!$A$1:$C$27,3,FALSE),0) -> 1330497.17
E165: =SUM(E140:E160) -> 0.9788649521 | F165: =SUM(F140:F163) -> 400222795.8 | G165: =F137-F165 -> 5.960464478e-07
A166: 0 to 6 months
A167: 07 to 12 months | B167: Seasoning Distribution
A168: 0 to 6 months | B168: 0 to 6 months | E168: =F168/F$179 -> 0.052921023 | F168: =IFERROR(VLOOKUP($A168,'[5]Seasoning Distribution'!$A$1:$C$12,3,FALSE),0) -> 21180199.78
A169: 07 to 12 months | B169: 07 to 12 months | E169: =F169/F$179 -> 0.4094177765 | F169: =IFERROR(VLOOKUP($A169,'[5]Seasoning Distribution'!$A$1:$C$12,3,FALSE),0) -> 163858327.1
A170: 13 to 18 months | B170: 13 to 18 months | E170: 0.2470282524 | F170: =IFERROR(VLOOKUP($A170,'[5]Seasoning Distribution'!$A$1:$C$12,3,FALSE),0) -> 98866337.8
A171: 19 to 24 months | B171: 19 to 24 months | E171: 0.02747292235 | F171: =IFERROR(VLOOKUP($A171,'[5]Seasoning Distribution'!$A$1:$C$12,3,FALSE),0) -> 10995289.79
A172: 25 to 30 months | B172: 25 to 30 months | E172: 0.2389215961 | F172: =IFERROR(VLOOKUP($A172,'[5]Seasoning Distribution'!$A$1:$C$12,3,FALSE),0) -> 95621869.17
A173: 31 to 36 months | B173: 31 to 36 months | E173: 0.0004969225694 | F173: =IFERROR(VLOOKUP($A173,'[5]Seasoning Distribution'!$A$1:$C$12,3,FALSE),0) -> 198879.74
A174: 37 to 42 months | B174: 37 to 42 months | E174: 0.002875633178 | F174: =IFERROR(VLOOKUP($A174,'[5]Seasoning Distribution'!$A$1:$C$12,3,FALSE),0) -> 1150893.95
A175: 43 to 48 months | B175: 43 to 48 months | E175: 0.0193323172 | F175: =IFERROR(VLOOKUP($A175,'[5]Seasoning Distribution'!$A$1:$C$12,3,FALSE),0) -> 7737234.04
A176: 49 to 54 months | B176: 49 to 54 months | E176: 0.0015335567 | F176: =IFERROR(VLOOKUP($A176,'[5]Seasoning Distribution'!$A$1:$C$12,3,FALSE),0) -> 613764.35
A177: 55 to 60 months | B177: 55 to 60 months | E177: 0 | F177: =IFERROR(VLOOKUP($A177,'[5]Seasoning Distribution'!$A$1:$C$12,3,FALSE),0) -> 0
A178: 60+ months | B178: 61 to 72 months | E178: 0 | F178: =IFERROR(VLOOKUP($A178,'[5]Seasoning Distribution'!$A$1:$C$12,3,FALSE),0) -> 0
A179: 61 to 72 months | B179: Total | E179: =SUM(E168:E178) -> 1 | F179: =SUM(F168:F178) -> 400222795.8 | G179: =F165-F179 -> 0
B181: Remaining Term Distribution
A182: 0 - 12 months | B182: 0-12 Months | E182: =F182/F$188 -> 0.03144427 | F182: =IFERROR(VLOOKUP($A182,'[5]Remaining Term'!$A$1:$C$10,3,FALSE),0) -> 12584713.65
A183: 13 - 24 months | B183: 13-24 Months | E183: =F183/F$188 -> 0.08739624699 | F183: =IFERROR(VLOOKUP($A183,'[5]Remaining Term'!$A$1:$C$10,3,FALSE),0) -> 34977970.31
A184: 25 - 36 months | B184: 25-36 Months | E184: 0.2547061431 | F184: =IFERROR(VLOOKUP($A184,'[5]Remaining Term'!$A$1:$C$10,3,FALSE),0) -> 101939204.7
A185: 37 - 48 months | B185: 37-48 Months | E185: 0.3246945979 | F185: =IFERROR(VLOOKUP($A185,'[5]Remaining Term'!$A$1:$C$10,3,FALSE),0) -> 129950179.8
A186: 49 - 60 months | B186: 49-60 Months | E186: 0.2852533057 | F186: =IFERROR(VLOOKUP($A186,'[5]Remaining Term'!$A$1:$C$10,3,FALSE),0) -> 114164875.5
A187: 60+ Months | B187: 60+ Months | E187: 0.01650543627 | F187: =IFERROR(VLOOKUP($A187,'[5]Remaining Term'!$A$1:$C$10,3,FALSE),0) -> 6605851.85
E188: =SUM(E182:E187) -> 1 | F188: =SUM(F182:F187) -> 400222795.8 | G188: =F179-F188 -> 0
B190: Origination LVR Distribution
A191: 01. 10% to 20% | B191: 10% to 20% | E191: =F191/F$207 -> 0.0004308100434 | F191: =IFERROR(VLOOKUP($A191,'[5]LVR Band'!$A$1:$C$18,3,FALSE),0) -> 172420
A192: 02. 21% to 30% | B192: 21% to 30% | E192: 0.004500772118 | F192: =IFERROR(VLOOKUP($A192,'[5]LVR Band'!$A$1:$C$18,3,FALSE),0) -> 1801311.6
A193: 03. 31% to 40% | B193: 31% to 40% | E193: 0.02376140218 | F193: =IFERROR(VLOOKUP($A193,'[5]LVR Band'!$A$1:$C$18,3,FALSE),0) -> 9509854.81
A194: 04. 41% to 50% | B194: 41% to 50% | E194: 0.0634499951 | F194: =IFERROR(VLOOKUP($A194,'[5]LVR Band'!$A$1:$C$18,3,FALSE),0) -> 25394134.43
A195: 05. 51% to 60% | B195: 51% to 60% | E195: 0.1322238801 | F195: =IFERROR(VLOOKUP($A195,'[5]LVR Band'!$A$1:$C$18,3,FALSE),0) -> 52919010.94
A196: 06. 61% to 70% | B196: 61% to 70% | E196: 0.1610170944 | F196: =IFERROR(VLOOKUP($A196,'[5]LVR Band'!$A$1:$C$18,3,FALSE),0) -> 64442711.67
A197: 07. 71% to 80% | B197: 71% to 80% | E197: 0.1902783321 | F197: =IFERROR(VLOOKUP($A197,'[5]LVR Band'!$A$1:$C$18,3,FALSE),0) -> 76153726.06
A198: 08. 81% to 90% | B198: 81% to 90% | E198: 0.1770275695 | F198: =IFERROR(VLOOKUP($A198,'[5]LVR Band'!$A$1:$C$18,3,FALSE),0) -> 70850468.81
A199: 09. 91% to 100% | B199: 91% to 100% | E199: 0.2473101445 | F199: =IFERROR(VLOOKUP($A199,'[5]LVR Band'!$A$1:$C$18,3,FALSE),0) -> 98979157.44
A200: > 100% | B200: > 100% | E200: 0 | F200: =IFERROR(VLOOKUP($A200,'[5]LVR Band'!$A$1:$C$18,3,FALSE),0) -> 0
E201: =SUM(E191:E200) -> 1 | F201: =SUM(F191:F200) -> 400222795.8 | G201: =F188-F201 -> 0
B203: New v Used
A204: New | B204: New | E204: =F204/F$207 -> 0.8507711004 | F204: =IFERROR(VLOOKUP($A204,'[5]New v Used'!$A$1:$C$9,3,FALSE),0) -> 340497988.4
A205: USed | B205: Used | E205: =F205/F$207 -> 0.1492288996 | F205: =IFERROR(VLOOKUP($A205,'[5]New v Used'!$A$1:$C$9,3,FALSE),0) -> 59724807.41
A206: Used
E207: =SUM(E204:E205) -> 1 | F207: =SUM(F204:F205) -> 400222795.8 | G207: =F201-F207 -> 0
B209: Contract Type
A210: Finance Lease | B210: Finance Lease | E210: =F210/F$213 -> 0.01217326607 | F210: =IFERROR(VLOOKUP($A210,'[5]Loan Type'!$A$1:$C$10,3,FALSE),0) -> 4872018.58
A211: Goods Mortgage | B211: Goods Mortgage | E211: =F211/F$213 -> 0.9878267339 | F211: =IFERROR(VLOOKUP($A211,'[5]Loan Type'!$A$1:$C$10,3,FALSE),0) -> 395350777.2
A212: Hire Purchase | B212: Hire Purchase | E212: 0 | F212: =IFERROR(VLOOKUP($A212,'[5]Loan Type'!$A$1:$C$10,3,FALSE),0) -> 0
E213: =SUM(E210:E212) -> 1 | F213: =SUM(F210:F212) -> 400222795.8 | G213: =F207-F213 -> 0
B215: Contract by Source
... 29 more rows
